fUSD/lending_fUSD_20260606
["ID","MTS","AMOUNT","RATE_DAILY","PERIOD"]
[424273907,1780726232000,-500.0,0.00010898,2]
[424273933,1780726233000,-194555.30808566,0.00010999,2]
[424273932,1780726233000,-86658.5179148,0.00010999,2]
[424273934,1780726233000,-1254.41808677,0.00010999,2]
[424273935,1780726238000,-2028.07953533,0.00010999,2]
[424273977,1780726240000,-541.0,0.00011292,2]
[424273976,1780726240000,-541.0,0.00011292,2]
[424273980,1780726240000,-541.0,0.00011292,2]
[424273975,1780726240000,-166.66,0.00011254,2]
[424273981,1780726240000,-541.0,0.00011292,2]
[424273978,1780726240000,-541.0,0.00011292,2]
[424273983,1780726240000,-541.0,0.00011292,2]
[424273984,1780726240000,-541.0,0.00011292,2]
[424273966,1780726240000,-1238518.17061106,0.00010999,2]
[424273974,1780726240000,-1500000.0,0.00011218,2]
[424273972,1780726240000,-170.18226876,0.00011208,2]
[424273971,1780726240000,-215.80795776,0.00011193,2]
[424273968,1780726240000,-266.53729218,0.00010999,2]
[424273970,1780726240000,-190.64451982,0.00011162,2]
[424273969,1780726240000,-22008.31380989,0.00011099,2]
[424273967,1780726240000,-1014.30282743,0.00010999,2]
[424273965,1780726240000,-56.78914649,0.00010999,2]
[424273979,1780726240000,-541.0,0.00011292,2]
[424273973,1780726240000,-250.0,0.00011208,2]
[424273985,1780726240000,-541.0,0.00011292,2]
[424273982,1780726240000,-541.0,0.00011292,2]
[424273986,1780726240000,-541.0,0.00011292,2]
[424273993,1780726240000,-541.0,0.00011292,2]
[424273999,1780726240000,-542.25939025,0.00011292,2]
[424274005,1780726240000,-1548.0,0.0001165,2]
[424274001,1780726240000,-2000.0,0.00011493,2]
[424273997,1780726240000,-541.0,0.00011292,2]
[424274004,1780726240000,-1548.0,0.0001165,2]
[424274003,1780726240000,-166.66,0.00011592,2]
[424274006,1780726240000,-1548.0,0.0001165,2]
[424274000,1780726240000,-22008.31380981,0.00011405,2]
[424274002,1780726240000,-1544.11891291,0.00011566,2]
[424273995,1780726240000,-541.0,0.00011292,2]
[424273988,1780726240000,-541.0,0.00011292,2]
[424273987,1780726240000,-541.0,0.00011292,2]
[424273991,1780726240000,-541.0,0.00011292,2]
[424273992,1780726240000,-541.0,0.00011292,2]
[424273994,1780726240000,-541.0,0.00011292,2]
[424273990,1780726240000,-541.0,0.00011292,2]
[424273989,1780726240000,-541.0,0.00011292,2]
[424273996,1780726240000,-541.0,0.00011292,2]
[424273998,1780726240000,-541.0,0.00011292,2]
[424274012,1780726241000,-1548.0,0.0001165,2]
[424274031,1780726241000,-2000.0,0.0001277,2]
[424274021,1780726241000,-151.0,0.00012,2]
[424274030,1780726241000,-22008.31380981,0.00012434,2]
[424274019,1780726241000,-151.0,0.00012,2]
[424274020,1780726241000,-151.0,0.00012,2]
[424274013,1780726241000,-152.0,0.0001165,2]
[424274010,1780726241000,-1548.0,0.0001165,2]
[424274011,1780726241000,-1548.0,0.0001165,2]
[424274018,1780726241000,-151.0,0.00012,2]
[424274016,1780726241000,-22008.31380981,0.00011748,2]
[424274017,1780726241000,-166.66,0.0001193,2]
[424274009,1780726241000,-1548.0,0.0001165,2]
[424274008,1780726241000,-1548.0,0.0001165,2]
[424274007,1780726241000,-1548.0,0.0001165,2]
[424274022,1780726241000,-1078.72,0.00012055,2]
[424274014,1780726241000,-151.0,0.0001165,2]
[424274023,1780726241000,-9999.99,0.00012087,2]
[424274015,1780726241000,-151.0,0.0001165,2]
[424274025,1780726241000,-1544.11891291,0.00012233,2]
[424274029,1780726241000,-264.69626257,0.00012329,2]
[424274044,1780726241000,-8382.56880516,0.00013121,2]
[424274041,1780726241000,-382.0,0.00013033,2]
[424274033,1780726241000,-228.14438436,0.00012811,2]
[424274040,1780726241000,-1274.0,0.00013033,2]
[424274038,1780726241000,-264.69626257,0.0001294,2]
[424274042,1780726241000,-1227.0,0.00013074,2]
[424274043,1780726241000,-933.0,0.00013074,2]
[424274039,1780726241000,-1014.30282743,0.0001295,2]
[424274036,1780726241000,-3216.9178579,0.000129,2]
[424274026,1780726241000,-500.0,0.00012247,2]
[424274037,1780726241000,-2834.0,0.00012918,5]
[424274027,1780726241000,-170.52,0.00012295,2]
[424274024,1780726241000,-22008.31380981,0.00012091,2]
[424274032,1780726241000,-22008.31380981,0.00012778,2]
[424274034,1780726241000,-452.34008586,0.00012846,2]
[424274035,1780726241000,-1544.11891291,0.000129,2]
[424274028,1780726241000,-158.55,0.00012329,2]
[424274075,1780726250000,-3759.95505086,0.00013121,2]
[424274073,1780726250000,-200.8811972,0.00013121,2]
[424274072,1780726250000,-59.47104429,0.00010899,2]
[424274071,1780726250000,-2440.52895571,0.00010899,2]
[424274074,1780726250000,-872.84991566,0.00013121,2]
[424274090,1780726419000,370.3,0.00030136,120]
[424274091,1780726601000,1016.0,0.000105,3]
[424274092,1780726680000,1984.0,0.000105,3]
[424274102,1780726943000,-10000.0,9.04e-05,2]
[424274103,1780726949000,-4749.7709618,9.04e-05,2]
[424274104,1780727065000,175.03430079,0.00030137,120]
[424274106,1780727133000,1000.0,0.000105,3]
[424274110,1780727340000,2000.0,0.00030136,120]
[424274130,1780727432000,-2000.0,9.547e-05,2]
[424274132,1780727432000,-1272.5,9.681e-05,2]
[424274133,1780727432000,-373.94706547,9.71e-05,2]
[424274134,1780727432000,-126.05293453,9.71e-05,2]
[424274135,1780727432000,-189.26706546,9.71e-05,2]
[424274131,1780727432000,-170.54,9.577e-05,2]
[424274138,1780727432000,-500.0,9.71e-05,2]
[424274136,1780727432000,-310.73293454,9.71e-05,2]
[424274140,1780727432000,-500.0,9.71e-05,2]
[424274139,1780727432000,-500.0,9.71e-05,2]
[424274141,1780727432000,-92.69558457,9.71e-05,2]
[424274137,1780727432000,-500.0,9.71e-05,2]
[424274179,1780727440000,-273.53291516,9.71e-05,2]
[424274178,1780727440000,-226.46708484,9.71e-05,2]
[424274177,1780727440000,-385.71291516,9.71e-05,2]
[424274176,1780727440000,-21.59150027,9.71e-05,2]
[424274184,1780727441000,-500.0,9.711e-05,2]
[424274185,1780727441000,-183.34414702,9.711e-05,2]
[424274182,1780727441000,-223.29890565,9.71e-05,2]
[424274181,1780727441000,-469.56470494,9.71e-05,2]
[424274183,1780727441000,-7276.3079483,9.711e-05,2]
[424274180,1780727441000,-500.0,9.71e-05,2]
[424274186,1780727441000,-205.0,9.807e-05,2]
[424274189,1780727441000,-6757.75361423,0.0001,2]
[424274196,1780727441000,-1678837.0519123,0.00010199,2]
[424274188,1780727441000,-2138.01327826,0.0001,2]
[424274187,1780727441000,-1575.54744642,0.0001,2]
[424274192,1780727441000,-263.05797644,0.000101,2]
[424274190,1780727441000,-862.05331696,0.00010099,2]
[424274193,1780727441000,-1017.08,0.000101,2]
[424274191,1780727441000,-2144.61190528,0.00010099,2]
[424274194,1780727441000,-250.0,0.000101,2]
[424274195,1780727441000,-170.18226876,0.00010189,2]
[424274201,1780727443000,-1014.05,0.00010199,2]
[424274218,1780727446000,-336.39787678,0.00010199,2]
[424274217,1780727446000,-6121.61832201,0.00010199,2]
[424274226,1780728478000,4128.0,0.0003013,120]
[424274227,1780728541000,2000.0,0.00030135,120]
[424274232,1780728570000,1500.0,0.00030137,120]
[424274264,1780728637000,-305.03561303,9.386e-05,2]
[424274266,1780728637000,-218.83292753,9.387e-05,2]
[424274265,1780728637000,-1446.76438697,9.386e-05,2]
[424274315,1780728638000,-193543.01324119,0.000103,2]
[424274298,1780728638000,-151.0,0.00010197,2]
[424274307,1780728638000,-151.0,0.00010217,2]
[424274309,1780728638000,-165.12182,0.00010217,2]
[424274310,1780728638000,-165.12182,0.00010217,2]
[424274305,1780728638000,-971637.9004432,0.00010217,2]
[424274308,1780728638000,-151.0,0.00010217,2]
[424274312,1780728638000,-165.12182,0.00010217,2]
[424274311,1780728638000,-165.12182,0.00010217,2]
[424274320,1780728638000,-500.0,0.00010351,2]
[424274313,1780728638000,-166.66,0.00010273,2]
[424274314,1780728638000,-151.0,0.00010297,2]
[424274326,1780728638000,-1921.75634917,0.000104,2]
[424274316,1780728638000,-500.0,0.00010329,2]
[424274318,1780728638000,-500.0,0.00010351,2]
[424274319,1780728638000,-500.0,0.00010351,2]
[424274321,1780728638000,-500.0,0.00010351,2]
[424274324,1780728638000,-500.0,0.00010351,2]
[424274323,1780728638000,-500.0,0.00010351,2]
[424274325,1780728638000,-396.32957951,0.00010351,2]
[424274301,1780728638000,-109697.6501522,0.00010217,2]
[424274322,1780728638000,-500.0,0.00010351,2]
[424274327,1780728638000,-541.0,0.00010426,2]
[424274328,1780728638000,-541.0,0.00010426,2]
[424274317,1780728638000,-500.0,0.00010351,2]
[424274300,1780728638000,-2400.8700076,0.00010217,2]
[424274293,1780728638000,-190.62685279,0.0001017,2]
[424274297,1780728638000,-151.0,0.00010197,2]
[424274269,1780728638000,-2617.67609917,9.71e-05,2]
[424274270,1780728638000,-455.76,9.879e-05,2]
[424274268,1780728638000,-636.25,9.441e-05,2]
[424274273,1780728638000,-612.48558151,9.899e-05,2]
[424274274,1780728638000,-500.0,9.899e-05,2]
[424274275,1780728638000,-1500000.0,9.9e-05,2]
[424274271,1780728638000,-150.0,9.898e-05,2]
[424274267,1780728638000,-170.52,9.388e-05,2]
[424274272,1780728638000,-500.0,9.899e-05,2]
[424274276,1780728638000,-2500000.0,9.9e-05,2]
[424274278,1780728638000,-311.329,9.999e-05,2]
[424274288,1780728638000,-4000.0,0.00010099,2]
[424274289,1780728638000,-2500.0,0.00010099,2]
[424274291,1780728638000,-163.61,0.00010148,2]
[424274280,1780728638000,-500.0,0.0001,2]
[424274277,1780728638000,-6348.71,9.999e-05,2]
[424274294,1780728638000,-190.62685279,0.0001017,2]
[424274279,1780728638000,-82650.18645677,0.0001,2]
[424274329,1780728638000,-541.0,0.00010426,2]
[424274282,1780728638000,-574.7022113,0.0001,2]
[424274284,1780728638000,-170.18226876,0.0001,2]
[424274286,1780728638000,-2000.0,0.00010099,2]
[424274285,1780728638000,-33261.1868,0.00010099,2]
[424274295,1780728638000,-151.0,0.00010196,2]
[424274296,1780728638000,-151.0,0.00010197,2]
[424274303,1780728638000,-11219.866419,0.00010217,2]
[424274330,1780728638000,-541.0,0.00010426,2]
[424274306,1780728638000,-151.0,0.00010217,2]
[424274335,1780728638000,-541.0,0.00010426,2]
[424274361,1780728638000,-5628.54375095,0.000109,2]
[424274358,1780728638000,-157.624035,0.000107,2]
[424274359,1780728638000,-151.0,0.000107,2]
[424274365,1780728638000,-150.0,0.00010959,2]
[424274367,1780728638000,-150.0,0.00010989,2]
[424274366,1780728638000,-151.0,0.00010959,2]
[424274375,1780728638000,-21703.6063624,0.00011099,2]
[424274373,1780728638000,-21703.6063624,0.00011099,2]
[424274370,1780728638000,-21703.6063624,0.00011099,2]
[424274372,1780728638000,-21703.6063624,0.00011099,2]
[424274376,1780728638000,-21703.6063624,0.00011099,2]
[424274369,1780728638000,-21703.60636243,0.00011099,2]
[424274354,1780728638000,-166.66,0.00010612,2]
[424274374,1780728638000,-21703.6063624,0.00011099,2]
[424274377,1780728638000,-21703.6063624,0.00011099,2]
[424274378,1780728638000,-21703.6063624,0.00011099,2]
[424274379,1780728638000,-11591.82977358,0.00011099,2]
[424274386,1780728638000,-151.0,0.00011112,2]
[424274380,1780728638000,-11591.82977358,0.00011099,2]
[424274387,1780728638000,-151.0,0.00011112,2]
[424274381,1780728638000,-165.12182,0.00011099,2]
[424274383,1780728638000,-165.12182,0.00011099,2]
[424274382,1780728638000,-165.12182,0.00011099,2]
[424274384,1780728638000,-165.12182,0.00011099,2]
[424274385,1780728638000,-154.061512,0.00011099,2]
[424274331,1780728638000,-541.0,0.00010426,2]
[424274368,1780728638000,-151.0,0.00011096,2]
[424274357,1780728638000,-171.9,0.000107,2]
[424274371,1780728638000,-21703.6063624,0.00011099,2]
[424274362,1780728638000,-5628.5437509,0.000109,2]
[424274332,1780728638000,-541.0,0.00010426,2]
[424274356,1780728638000,-171064.35392026,0.000107,2]
[424274334,1780728638000,-541.0,0.00010426,2]
[424274337,1780728638000,-541.0,0.00010426,2]
[424274339,1780728638000,-541.0,0.00010426,2]
[424274333,1780728638000,-541.0,0.00010426,2]
[424274336,1780728638000,-541.0,0.00010426,2]
[424274338,1780728638000,-541.0,0.00010426,2]
[424274340,1780728638000,-541.0,0.00010426,2]
[424274342,1780728638000,-541.0,0.00010426,2]
[424274343,1780728638000,-541.0,0.00010426,2]
[424274349,1780728638000,-541.0,0.00010426,2]
[424274351,1780728638000,-680.48447022,0.00010499,2]
[424274341,1780728638000,-541.0,0.00010426,2]
[424274350,1780728638000,-542.25939025,0.00010426,2]
[424274360,1780728638000,-151.0,0.000107,2]
[424274344,1780728638000,-541.0,0.00010426,2]
[424274352,1780728638000,-190.64451982,0.00010542,2]
[424274364,1780728638000,-166.66,0.00010952,2]
[424274353,1780728638000,-1751.8,0.0001056,2]
[424274363,1780728638000,-215.80795776,0.0001093,2]
[424274355,1780728638000,-271.70189762,0.000107,2]
[424274348,1780728638000,-541.0,0.00010426,2]
[424274345,1780728638000,-541.0,0.00010426,2]
[424274347,1780728638000,-541.0,0.00010426,2]
[424274346,1780728638000,-541.0,0.00010426,2]
[424274429,1780728639000,-32000.0,0.00013,2]
[424274425,1780728639000,-500.0,0.00012795,2]
[424274426,1780728639000,-1751.8,0.00012906,2]
[424274424,1780728639000,-5628.5437509,0.00012714,2]
[424274423,1780728639000,-11591.82977358,0.00012699,2]
[424274421,1780728639000,-2426.0,0.00012673,5]
[424274428,1780728639000,-264.69626257,0.00012996,2]
[424274427,1780728639000,-289.97,0.00012985,2]
[424274422,1780728639000,-2706.0,0.00012673,5]
[424274418,1780728639000,-158.55,0.00012329,2]
[424274431,1780728639000,-165.347,0.00013001,2]
[424274419,1780728639000,-158.59,0.00012329,2]
[424274441,1780728639000,-500.0,0.00013356,2]
[424274444,1780728639000,-150.0,0.00013488,2]
[424274440,1780728639000,-500.0,0.00013356,2]
[424274433,1780728639000,-1227.0,0.00013001,2]
[424274443,1780728639000,-151.5407187,0.00013488,2]
[424274442,1780728639000,-5628.5437509,0.00013443,2]
[424274430,1780728639000,-1358.0,0.00013001,2]
[424274432,1780728639000,-382.0,0.00013001,2]
[424274434,1780728639000,-419.0,0.00013001,2]
[424274435,1780728639000,-933.0,0.00013001,2]
[424274436,1780728639000,-636.25,0.00013217,2]
[424274437,1780728639000,-11591.82977358,0.00013219,2]
[424274438,1780728639000,-225.0,0.000133,2]
[424274420,1780728639000,-264.69626257,0.00012329,2]
[424274449,1780728639000,-921.45495258,0.000135,2]
[424274439,1780728639000,-1400.0,0.00013356,2]
[424274416,1780728639000,-11591.82977358,0.0001218,2]
[424274388,1780728639000,-396.5199695,0.00011115,2]
[424274411,1780728639000,-1078.72,0.00012055,2]
[424274448,1780728639000,-150.0,0.00013488,2]
[424274391,1780728639000,-181.107723,0.00011115,2]
[424274396,1780728639000,-166.66,0.00011291,2]
[424274390,1780728639000,-737.9925,0.00011115,2]
[424274389,1780728639000,-16710.4079186,0.00011115,2]
[424274393,1780728639000,-5628.5437509,0.00011257,2]
[424274392,1780728639000,-11591.82977358,0.0001114,2]
[424274394,1780728639000,-150.99,0.00011281,2]
[424274395,1780728639000,-184.9,0.00011281,2]
[424274398,1780728639000,-1548.0,0.00011606,2]
[424274407,1780728639000,-151.0,0.00012,2]
[424274404,1780728639000,-1751.8,0.00011733,2]
[424274406,1780728639000,-5628.5437509,0.00011986,2]
[424274405,1780728639000,-166.66,0.00011969,2]
[424274397,1780728639000,-500.0,0.00011534,2]
[424274399,1780728639000,-166.66,0.0001163,2]
[424274400,1780728639000,-11591.82977358,0.0001166,2]
[424274401,1780728639000,-574.70221129,0.00011699,2]
[424274402,1780728639000,-150.0,0.00011699,2]
[424274403,1780728639000,-204.24,0.00011699,2]
[424274408,1780728639000,-151.0,0.00012,2]
[424274412,1780728639000,-9999.99,0.00012087,2]
[424274413,1780728639000,-151.0,0.00012179,2]
[424274410,1780728639000,-151.0,0.00012,2]
[424274414,1780728639000,-151.0,0.00012179,2]
[424274415,1780728639000,-258.573266,0.00012179,2]
[424274409,1780728639000,-151.0,0.00012,2]
[424274417,1780728639000,-500.0,0.00012301,2]
[424274447,1780728639000,-160.88134904,0.00013488,2]
[424274482,1780728639000,-2608.19,0.00013698,2]
[424274445,1780728639000,-151.41923818,0.00013488,2]
[424274481,1780728639000,-2608.19,0.00013698,2]
[424274485,1780728639000,-2608.19,0.00013698,2]
[424274495,1780728639000,-2608.19,0.00013698,2]
[424274497,1780728639000,-2608.19,0.00013698,2]
[424274496,1780728639000,-2608.19,0.00013698,2]
[424274484,1780728639000,-2608.19,0.00013698,2]
[424274487,1780728639000,-2608.19,0.00013698,2]
[424274486,1780728639000,-2608.19,0.00013698,2]
[424274492,1780728639000,-2608.19,0.00013698,2]
[424274490,1780728639000,-2608.19,0.00013698,2]
[424274489,1780728639000,-2608.19,0.00013698,2]
[424274493,1780728639000,-2608.19,0.00013698,2]
[424274491,1780728639000,-2608.19,0.00013698,2]
[424274494,1780728639000,-2608.19,0.00013698,2]
[424274498,1780728639000,-2608.34668627,0.00013698,2]
[424274499,1780728639000,-500.0,0.00013698,2]
[424274501,1780728639000,-4438.86,0.00013698,2]
[424274500,1780728639000,-366.65230893,0.00013698,2]
[424274509,1780728639000,-4438.86,0.00013698,2]
[424274502,1780728639000,-4438.86,0.00013698,2]
[424274505,1780728639000,-4438.86,0.00013698,2]
[424274508,1780728639000,-4438.86,0.00013698,2]
[424274503,1780728639000,-4438.86,0.00013698,2]
[424274504,1780728639000,-4438.86,0.00013698,2]
[424274506,1780728639000,-4438.86,0.00013698,2]
[424274446,1780728639000,-150.0,0.00013488,2]
[424274507,1780728639000,-4438.86,0.00013698,2]
[424274479,1780728639000,-2608.19,0.00013698,2]
[424274480,1780728639000,-2608.19,0.00013698,2]
[424274488,1780728639000,-2608.19,0.00013698,2]
[424274478,1780728639000,-2608.19,0.00013698,2]
[424274455,1780728639000,-1548.0,0.00013597,2]
[424274450,1780728639000,-362.03679893,0.00013537,2]
[424274477,1780728639000,-2608.19,0.00013698,2]
[424274451,1780728639000,-342.14338402,0.00013537,2]
[424274452,1780728639000,-1548.0,0.00013597,2]
[424274453,1780728639000,-1548.0,0.00013597,2]
[424274454,1780728639000,-1548.0,0.00013597,2]
[424274456,1780728639000,-1548.0,0.00013597,2]
[424274466,1780728639000,-264.69626257,0.00013664,2]
[424274459,1780728639000,-1548.0,0.00013597,2]
[424274470,1780728639000,-500.0,0.00013698,2]
[424274469,1780728639000,-500.0,0.00013698,2]
[424274460,1780728639000,-1562.23345922,0.00013597,2]
[424274461,1780728639000,-154.55676498,0.00013597,2]
[424274467,1780728639000,-210.27258824,0.00013695,2]
[424274458,1780728639000,-1548.0,0.00013597,2]
[424274476,1780728639000,-2608.19,0.00013698,2]
[424274468,1780728639000,-309.2365174,0.00013697,2]
[424274473,1780728639000,-500.0,0.00013698,2]
[424274483,1780728639000,-2608.19,0.00013698,2]
[424274472,1780728639000,-450.4140981,0.00013698,2]
[424274471,1780728639000,-502.80068804,0.00013698,2]
[424274474,1780728639000,-515.79051281,0.00013698,2]
[424274463,1780728639000,-574.70221129,0.00013598,2]
[424274462,1780728639000,-155.50929057,0.00013597,2]
[424274464,1780728639000,-500.0,0.00013616,2]
[424274457,1780728639000,-1548.0,0.00013597,2]
[424274465,1780728639000,-188.56452659,0.0001363,2]
[424274475,1780728639000,-2608.19,0.00013698,2]
[424274548,1780728640000,-500.0,0.00013698,2]
[424274551,1780728640000,-500.0,0.00013698,2]
[424274552,1780728640000,-500.0,0.00013698,2]
[424274549,1780728640000,-500.0,0.00013698,2]
[424274550,1780728640000,-500.0,0.00013698,2]
[424274539,1780728640000,-552.93,0.00013698,2]
[424274544,1780728640000,-552.93,0.00013698,2]
[424274545,1780728640000,-552.93,0.00013698,2]
[424274540,1780728640000,-552.93,0.00013698,2]
[424274543,1780728640000,-552.93,0.00013698,2]
[424274553,1780728640000,-500.0,0.00013698,2]
[424274541,1780728640000,-552.93,0.00013698,2]
[424274557,1780728640000,-500.0,0.00013698,2]
[424274563,1780728640000,-200.0,0.00013699,2]
[424274558,1780728640000,-500.0,0.00013698,2]
[424274555,1780728640000,-500.0,0.00013698,2]
[424274560,1780728640000,-500.0,0.00013698,2]
[424274559,1780728640000,-500.0,0.00013698,2]
[424274554,1780728640000,-500.0,0.00013698,2]
[424274562,1780728640000,-166.66,0.00013699,2]
[424274569,1780728640000,-151.0,0.00013699,2]
[424274571,1780728640000,-166.18481118,0.00013699,2]
[424274570,1780728640000,-151.0,0.00013699,2]
[424274561,1780728640000,-219.47590719,0.00013698,2]
[424274573,1780728640000,-632.53844444,0.00013699,2]
[424274572,1780728640000,-2000.0,0.00013699,7]
[424274542,1780728640000,-552.93,0.00013698,2]
[424274564,1780728640000,-152.254152,0.00013699,2]
[424274556,1780728640000,-500.0,0.00013698,2]
[424274537,1780728640000,-552.93,0.00013698,2]
[424274510,1780728640000,-4438.86,0.00013698,2]
[424274538,1780728640000,-552.93,0.00013698,2]
[424274566,1780728640000,-721.84,0.00013699,2]
[424274511,1780728640000,-4438.86,0.00013698,2]
[424274513,1780728640000,-4438.86,0.00013698,2]
[424274514,1780728640000,-4438.86,0.00013698,2]
[424274512,1780728640000,-4438.86,0.00013698,2]
[424274516,1780728640000,-4438.86,0.00013698,2]
[424274515,1780728640000,-4438.86,0.00013698,2]
[424274521,1780728640000,-4438.86,0.00013698,2]
[424274518,1780728640000,-4438.86,0.00013698,2]
[424274519,1780728640000,-4438.86,0.00013698,2]
[424274522,1780728640000,-4438.86,0.00013698,2]
[424274520,1780728640000,-4438.86,0.00013698,2]
[424274517,1780728640000,-4438.86,0.00013698,2]
[424274535,1780728640000,-552.93,0.00013698,2]
[424274523,1780728640000,-4438.86,0.00013698,2]
[424274526,1780728640000,-201.61838733,0.00013698,2]
[424274528,1780728640000,-552.93,0.00013698,2]
[424274527,1780728640000,-153.344063,0.00013698,2]
[424274524,1780728640000,-4439.01781194,0.00013698,2]
[424274531,1780728640000,-552.93,0.00013698,2]
[424274534,1780728640000,-552.93,0.00013698,2]
[424274529,1780728640000,-552.93,0.00013698,2]
[424274533,1780728640000,-552.93,0.00013698,2]
[424274530,1780728640000,-552.93,0.00013698,2]
[424274532,1780728640000,-552.93,0.00013698,2]
[424274536,1780728640000,-552.93,0.00013698,2]
[424274546,1780728640000,-500.0,0.00013698,2]
[424274547,1780728640000,-500.0,0.00013698,2]
[424274525,1780728640000,-500.0,0.00013698,2]
[424274568,1780728640000,-151.0,0.00013699,2]
[424274607,1780728640000,-500.0,0.00014,2]
[424274565,1780728640000,-154.913139,0.00013699,2]
[424274603,1780728640000,-500.0,0.00013999,2]
[424274604,1780728640000,-500.0,0.00014,2]
[424274609,1780728640000,-500.0,0.00014,2]
[424274612,1780728640000,-500.0,0.00014,2]
[424274611,1780728640000,-171.25,0.00014,2]
[424274608,1780728640000,-500.0,0.00014,2]
[424274614,1780728640000,-500.0,0.00014,2]
[424274620,1780728640000,-500.0,0.00014,2]
[424274625,1780728640000,-500.0,0.00014,2]
[424274621,1780728640000,-500.0,0.00014,2]
[424274622,1780728640000,-500.0,0.00014,2]
[424274624,1780728640000,-500.0,0.00014,2]
[424274623,1780728640000,-500.0,0.00014,2]
[424274602,1780728640000,-552.93,0.00013999,2]
[424274613,1780728640000,-500.0,0.00014,2]
[424274616,1780728640000,-500.0,0.00014,2]
[424274618,1780728640000,-500.0,0.00014,2]
[424274619,1780728640000,-500.0,0.00014,2]
[424274617,1780728640000,-500.0,0.00014,2]
[424274627,1780728640000,-500.0,0.00014,2]
[424274628,1780728640000,-500.0,0.00014,2]
[424274626,1780728640000,-500.0,0.00014,2]
[424274630,1780728640000,-500.0,0.00014,2]
[424274631,1780728640000,-500.0,0.00014,2]
[424274567,1780728640000,-151.0,0.00013699,2]
[424274633,1780728640000,-500.0,0.00014,2]
[424274632,1780728640000,-500.0,0.00014,2]
[424274634,1780728640000,-500.0,0.00014,2]
[424274615,1780728640000,-500.0,0.00014,2]
[424274610,1780728640000,-500.0,0.00014,2]
[424274629,1780728640000,-500.0,0.00014,2]
[424274606,1780728640000,-500.0,0.00014,2]
[424274605,1780728640000,-500.0,0.00014,2]
[424274574,1780728640000,-1037.0,0.00013699,2]
[424274579,1780728640000,-1037.0,0.00013699,2]
[424274576,1780728640000,-1037.0,0.00013699,2]
[424274581,1780728640000,-1037.0,0.00013699,2]
[424274575,1780728640000,-1037.0,0.00013699,2]
[424274580,1780728640000,-1037.0,0.00013699,2]
[424274584,1780728640000,-1037.0,0.00013699,2]
[424274583,1780728640000,-1037.0,0.00013699,2]
[424274577,1780728640000,-1037.0,0.00013699,2]
[424274582,1780728640000,-1037.0,0.00013699,2]
[424274587,1780728640000,-1037.0,0.00013699,2]
[424274585,1780728640000,-1037.0,0.00013699,2]
[424274586,1780728640000,-1037.0,0.00013699,2]
[424274578,1780728640000,-1037.0,0.00013699,2]
[424274599,1780728640000,-169.65,0.00013868,2]
[424274589,1780728640000,-1037.0,0.00013699,2]
[424274597,1780728640000,-169.65,0.00013868,2]
[424274595,1780728640000,-500.0,0.00013836,2]
[424274591,1780728640000,-1037.0,0.00013699,2]
[424274593,1780728640000,-1037.0,0.00013699,2]
[424274596,1780728640000,-166.66,0.00013836,2]
[424274600,1780728640000,-192.526183,0.00013965,2]
[424274598,1780728640000,-169.65,0.00013868,2]
[424274592,1780728640000,-1037.0,0.00013699,2]
[424274601,1780728640000,-166.66,0.00013973,2]
[424274588,1780728640000,-1037.0,0.00013699,2]
[424274594,1780728640000,-11591.82977358,0.00013739,2]
[424274590,1780728640000,-1037.0,0.00013699,2]